bitfinex/quotes_ETHUSD_20241116
["timestamp","ask_amount","ask_price","bid_price","bid_amount"]
[1731720151212,0.8151,3104.6,3104.1,3.22151]
[1731720151797,0.8151,3104.6,3103.9,3.543826]
[1731720152001,4.03619,3104.6,3103.9,3.543826]
[1731720152381,4.03619,3104.6,3104.0,3.22163]
[1731720152918,0.8151,3104.6,3104.0,3.22163]
[1731720153108,3.22115,3104.5,3104.0,3.22163]
[1731720153314,0.8151,3104.4,3103.3,3.22237]
[1731720153612,4.03696,3103.8,3103.1,3.22253]
[1731720154111,3.22196,3103.7,3103.1,3.22253]
[1731720154322,3.22214,3103.6,3103.0,0.6584831]
[1731720154522,3.2223,3103.4,3102.7,6.44588]
[1731720154808,3.2223,3103.4,3102.7,3.22293]
[1731720155110,3.2221,3103.6,3103.0,3.22268]
[1731720155612,3.2221,3103.6,3103.1,3.22257]
[1731720155912,3.2221,3103.6,3102.9,3.8729816]
[1731720156120,3.22197,3103.7,3103.1,3.22257]
[1731720156328,3.22197,3103.7,3102.9,4.58256376]
[1731720156329,0.8151,3103.8,3103.3,3.22232]
[1731720157180,0.8151,3103.8,3103.4,3.22226]
[1731720157782,0.05213579,3103.7,3103.4,3.22226]
[1731720157977,3.22168,3104.0,3103.4,3.22226]
[1731720158315,0.05206956,3103.6,3103.5,3.22216]
[1731720158814,4.03665,3104.1,3103.5,3.22216]
[1731720158979,0.05206956,3103.6,3103.5,3.22216]
[1731720159299,0.8151,3104.1,3103.5,3.22216]
[1731720159623,0.8151,3104.1,3103.3,3.22231]
[1731720159624,3.22165,3104.0,3103.3,3.22231]
[1731720159807,3.22176,3103.9,3103.3,3.22231]
[1731720160117,3.27402823,3103.9,3103.4,0.23677626]
[1731720160414,3.27402823,3103.9,3103.5,0.2368466]
[1731720160711,0.05226823,3103.9,3103.4,3.22225]
[1731720161510,0.05226823,3103.9,3103.5,0.23686875]
[1731720161820,0.05226823,3103.9,3103.4,3.22225]
[1731720162122,0.05226823,3103.9,3103.5,0.88921909]
[1731720162416,0.05226823,3103.9,3103.5,0.65226701]
[1731720162584,0.05226823,3103.9,3103.5,3.87441701]
[1731720162790,0.05226823,3103.9,3103.3,3.22229]
[1731720162991,0.05226823,3103.9,3103.2,3.22244]
[1731720162992,0.40890182,3103.9,3103.2,3.22244]
[1731720163301,0.05219809,3103.8,3103.4,3.45916798]
[1731720163619,3.22165,3104.0,3103.4,3.22224]
[1731720163777,0.05213187,3103.7,3103.5,3.22211]
[1731720164117,3.22165,3104.0,3103.5,3.22211]
[1731720164626,0.05226431,3103.9,3103.5,3.22211]
[1731720166119,0.05226431,3103.9,3103.3,3.22232]
[1731720166120,3.27402431,3103.9,3103.3,3.22232]
[1731720166682,3.27402431,3103.9,3103.4,0.23707447]
[1731720166885,3.27402431,3103.9,3103.3,3.22232]
[1731720167288,0.05226431,3103.9,3103.4,0.23705076]
[1731720167491,0.05226431,3103.9,3103.3,6.44461]
[1731720167725,0.05226431,3103.9,3103.4,3.45930975]
[1731720167928,0.05226431,3103.9,3103.4,3.22226]
[1731720170530,0.05226431,3103.9,3103.7,3.2219]
[1731720170920,0.8151,3104.1,3103.7,3.2219]
[1731720171089,0.05042684,3103.8,3103.7,3.2219]
[1731720171292,0.8151,3104.1,3103.7,3.2219]
[1731720171490,0.05042684,3103.8,3103.7,3.2219]
[1731720171690,3.22135,3104.3,3103.7,3.946207]
[1731720171892,0.05042684,3103.8,3103.7,3.2219]
[1731720172098,3.22135,3104.3,3103.7,3.2219]
[1731720172301,0.05042684,3103.8,3103.7,3.2219]
[1731720172531,3.22135,3104.3,3103.7,3.2219]
[1731720173124,0.0506917,3104.2,3103.7,3.2219]
[1731720173333,0.0506917,3104.2,3103.7,0.724307]
[1731720173506,0.0506917,3104.2,3104.0,6.44313]
[1731720173703,3.22103,3104.6,3104.0,3.22156]
[1731720173891,0.04896936,3104.1,3104.0,3.22156]
[1731720174095,3.22103,3104.6,3104.0,3.22156]
[1731720174290,0.04897859,3104.1,3104.0,3.86835019]
[1731720174491,3.22103,3104.6,3104.0,3.86835019]
[1731720174687,0.04897859,3104.1,3104.0,3.86835019]
[1731720174893,0.7901,3104.7,3104.2,3.22136]
[1731720175094,0.7901,3104.7,3104.0,3.86839019]
[1731720175095,4.01105,3104.7,3104.1,3.22152]
[1731720176122,0.7901,3104.7,3104.2,3.2214]
[1731720176292,0.7901,3104.7,3104.2,3.22136]
[1731720176602,0.7901,3104.7,3104.1,3.22154]
[1731720176804,0.7901,3104.7,3104.3,3.22128]
[1731720181514,0.7901,3104.7,3104.1,6.44301]
[1731720181710,0.7901,3104.7,3104.1,3.22147]
[1731720181906,0.7901,3104.7,3104.2,3.22143]
[1731720182108,0.7901,3104.7,3104.2,4.00854902]
[1731720182340,3.22082,3104.8,3104.2,4.00854902]
[1731720182503,3.22082,3104.8,3104.6,0.63814235]
[1731720183441,3.22034,3105.3,3104.7,3.22085]
[1731720183643,0.7901,3105.2,3104.7,3.22085]
[1731720184657,3.92321,3105.2,3104.7,3.22085]
[1731720185331,3.22053,3105.1,3104.6,0.63814235]
[1731720185499,3.92321,3105.2,3104.6,0.63814235]
[1731720185500,3.22069,3105.0,3104.6,0.63814235]
[1731720185703,3.22072,3104.9,3104.6,0.63814235]
[1731720187753,3.22072,3104.9,3104.4,3.2212]
[1731720188631,0.04779109,3104.8,3104.4,3.2212]
[1731720189581,0.04772491,3104.7,3104.4,3.2212]
[1731720189736,3.22061,3105.0,3104.4,3.87190017]
[1731720189941,0.04785727,3104.9,3104.4,4.52017469]
[1731720190978,0.04785727,3104.9,3104.6,3.221]
[1731720191146,3.22051,3105.1,3104.4,4.52017469]
[1731720191352,0.04632144,3105.0,3104.4,7.74133469]
[1731720191675,0.04632144,3105.0,3104.4,4.52013469]
[1731720191973,0.04632144,3105.0,3104.5,3.22107]
[1731720192482,3.26694144,3105.0,3104.5,3.22107]
[1731720192776,3.26694144,3105.0,3104.4,3.86946452]
[1731720192988,3.26694144,3105.0,3104.4,3.86944452]
[1731720193137,3.22079,3104.9,3104.4,0.64827452]
[1731720193493,0.7569,3104.7,3103.7,0.7622]
[1731720193792,0.7569,3104.1,3103.6,3.22205]
[1731720193977,0.7569,3104.1,3103.7,3.22186]
[1731720194147,0.04564217,3104.0,3103.7,3.22186]
[1731720195356,0.04564217,3104.0,3103.9,3.22175]
[1731720195673,0.7569,3104.4,3104.0,3.22157]
[1731720196690,0.7569,3104.4,3103.8,3.22178]
[1731720197044,0.7569,3104.4,3103.9,3.22173]
[1731720197891,0.7569,3104.4,3103.9,6.4434]
[1731720198091,3.97821,3104.4,3103.7,3.898481]
[1731720198956,0.7569,3104.4,3103.8,3.22178]
[1731720199149,0.7569,3104.4,3103.8,0.3898371]
[1731720199355,0.7569,3104.7,3104.0,3.22164]
[1731720199852,0.7569,3104.7,3104.2,3.22143]
[1731720200048,0.7569,3104.7,3104.3,3.22126]
[1731720200292,0.7569,3104.7,3104.4,3.2212]
[1731720200458,0.485205,3104.9,3104.5,3.22107]
[1731720200657,0.485205,3104.9,3104.6,3.22099]
[1731720200950,0.485205,3104.9,3104.5,3.9833]
[1731720201151,0.485205,3104.9,3104.6,3.22094]
[1731720202992,0.485205,3104.9,3104.7,3.22083]
[1731720203160,0.485205,3104.9,3104.8,3.864987]
[1731720203361,0.485205,3104.9,3104.8,3.22081]
[1731720203891,0.53143367,3104.9,3104.6,3.22094]
[1731720204599,0.53143367,3104.9,3104.7,3.22091]
[1731720206703,0.53143367,3104.9,3104.8,3.22081]
[1731720208180,0.53143367,3104.9,3104.7,0.720423]
[1731720208902,0.53143367,3104.9,3104.7,3.941323]
[1731720210306,0.53143367,3104.9,3104.4,3.54328]
[1731720210510,0.53143367,3104.9,3103.9,4.0534]
[1731720210511,3.22109,3104.6,3103.9,4.0534]
[1731720210667,3.22124,3104.4,3103.9,3.2217]
[1731720211005,0.04431787,3104.3,3103.9,3.2217]
[1731720211576,0.04431787,3104.3,3103.7,6.4438]
[1731720211794,0.04431787,3104.3,3103.8,4.36323361]
[1731720212133,3.26565787,3104.3,3103.8,1.14140361]
[1731720212427,3.26565787,3104.3,3103.6,4.32366263]
[1731720212428,3.98854,3104.2,3103.6,0.8317]
[1731720212584,0.81133544,3104.2,3103.7,3.22188]
[1731720212791,0.04423544,3104.2,3103.8,3.22184]
[1731720213013,3.98838,3104.4,3103.8,3.22184]
[1731720213206,0.04282142,3104.3,3103.8,3.22184]
[1731720213411,3.26416142,3104.3,3103.8,3.22184]
[1731720214186,0.04282142,3104.3,3103.8,3.22184]
[1731720214387,3.98802,3104.7,3104.0,3.22158]
[1731720214585,0.04275522,3104.2,3104.0,3.22158]
[1731720214813,3.98802,3104.7,3104.0,3.22158]
[1731720215039,0.04268901,3104.1,3104.0,3.22158]
[1731720215323,3.98802,3104.7,3104.0,4.24797702]
[1731720215529,0.04268901,3104.1,3104.0,1.02639702]
[1731720215688,0.7671,3104.7,3104.0,0.8317]
[1731720215891,0.7671,3104.7,3104.1,3.22145]
[1731720215892,3.98803,3104.7,3104.1,3.22145]
[1731720216086,7.20903,3104.7,3104.1,3.22145]
[1731720216302,3.22103,3104.6,3104.1,3.22145]
[1731720216506,3.98803,3104.7,3104.1,3.22145]
[1731720216727,3.98803,3104.7,3104.1,4.33099502]
[1731720217737,0.485205,3104.9,3104.4,3.22116]
[1731720218396,0.431605,3104.9,3104.3,3.28566924]
[1731720218623,0.04314117,3104.8,3104.5,3.22111]
[1731720218820,0.04314117,3104.8,3104.4,0.32856692]
[1731720220153,0.04314117,3104.8,3104.7,3.49196263]
[1731720220358,0.04314117,3104.8,3104.7,6.71288263]
[1731720220640,0.431605,3104.9,3104.8,3.22081]
[1731720221217,0.431605,3104.9,3104.8,4.05251]
[1731720221454,0.431605,3104.9,3104.8,7.05251]
[1731720223031,0.47486299,3104.9,3104.8,7.11691736]
[1731720223233,0.431605,3104.9,3104.8,7.11691736]
[1731720223407,0.431605,3104.9,3104.8,8.25900051]
[1731720223608,0.431605,3104.9,3104.8,8.19459315]
[1731720224412,0.431605,3104.9,3104.8,8.82330163]
[1731720224611,0.47487222,3104.9,3104.8,1.77079163]
[1731720224829,0.431605,3104.9,3104.5,4.05274]
[1731720225029,0.47487306,3104.9,3104.5,4.05274]
[1731720225246,0.47487306,3104.9,3104.5,0.8317]
[1731720225445,1.24197306,3104.9,3104.4,3.22123]
[1731720225654,1.24197306,3104.9,3104.4,3.948649]
[1731720225806,0.47487306,3104.9,3104.5,3.22109]
[1731720226011,0.47487306,3104.9,3104.8,4.03301]
[1731720226258,0.431605,3104.9,3104.8,4.76484539]
[1731720226553,0.431605,3104.9,3104.8,7.76484539]
[1731720228480,0.431605,3104.9,3104.8,7.82924479]
[1731720230479,0.431605,3104.9,3104.8,7.76484539]
[1731720230773,0.431605,3104.9,3104.8,7.829244]
[1731720231145,0.431605,3104.9,3104.8,8.48522334]
[1731720231471,0.431605,3104.9,3104.8,8.42082473]
[1731720231880,4.02661,3106.2,3104.9,0.8222]
[1731720231881,0.8072,3106.2,3104.9,0.8222]
[1731720232081,4.02581,3107.0,3106.2,3.21932]
[1731720232378,0.8072,3107.0,3106.4,3.21911]
[1731720232868,0.8072,3107.0,3106.5,3.21905]
[1731720233174,0.8072,3107.0,3106.6,3.21894]
[1731720233357,0.8072,3107.0,3106.6,3.28331573]
[1731720233665,0.0403008,3106.9,3106.6,3.28331573]
[1731720234031,0.0403008,3106.9,3106.8,3.21874]
[1731720234365,0.0403008,3106.9,3106.6,0.65023657]
[1731720234680,0.8072,3107.0,3106.7,3.2188]
[1731720234962,0.04023499,3106.8,3106.5,3.21899]
[1731720235163,0.8072,3107.0,3106.6,3.21885]
[1731720235567,0.04030108,3106.9,3106.8,3.21871]
[1731720236072,0.8072,3107.7,3107.2,3.21824]
[1731720237031,4.02503,3107.7,3107.1,0.87656069]
[1731720237254,4.02503,3107.7,3107.1,4.09496069]
[1731720238569,0.8072,3107.7,3107.2,3.2183]
[1731720240474,4.02501,3107.7,3107.1,0.87656069]
[1731720240629,0.8072,3107.7,3107.1,0.87656069]
[1731720240830,0.8072,3107.7,3107.2,3.21832]
[1731720241374,0.8072,3107.7,3107.1,1.34986483]
[1731720241572,4.02507,3107.7,3107.1,1.34986483]
[1731720241738,4.02507,3107.7,3107.1,4.56827483]
[1731720241939,0.8072,3107.7,3107.2,3.21832]
[1731720242141,3.21829,3107.3,3106.6,3.21888]
[1731720242341,3.21829,3107.3,3106.7,3.0]
[1731720242342,0.8072,3107.2,3106.7,3.0]
[1731720242563,0.8072,3107.2,3106.7,3.35890288]
[1731720242771,4.02556,3107.2,3106.7,3.35890288]
[1731720242943,0.04049669,3107.1,3106.7,3.35890288]
[1731720243429,0.04049669,3107.1,3106.5,3.0]
[1731720243626,0.04049669,3107.1,3106.6,3.28324386]
[1731720243872,0.55,3107.4,3106.6,3.28324386]
[1731720244054,0.55,3107.4,3106.8,3.21873]
[1731720244055,0.04043061,3107.0,3106.8,3.21873]
[1731720244229,4.02527,3107.5,3106.9,3.28293572]
[1731720244427,0.8072,3107.5,3106.9,0.06436572]
[1731720244630,0.8072,3107.5,3107.0,3.21852]
[1731720244874,4.02522,3107.5,3106.8,3.21873]
[1731720245479,4.02522,3107.5,3106.9,3.21863]
[1731720245629,4.02522,3107.5,3107.0,0.06436399]
[1731720245876,0.8072,3107.5,3107.1,3.21841]
[1731720246043,0.7987,3107.8,3107.0,0.06436399]
[1731720246375,4.01641,3107.8,3107.2,3.21828]
[1731720246542,3.21792,3107.6,3107.0,3.21848]
[1731720246869,4.01641,3107.8,3107.0,3.21848]
[1731720246870,4.01641,3107.8,3107.1,3.21839]
[1731720247076,4.01641,3107.8,3107.2,3.21825]
[1731720247368,3.21727,3108.3,3106.6,3.21891]
[1731720247369,3.2182,3107.4,3106.6,3.21891]
[1731720247567,3.21829,3107.3,3106.7,2.99999922]
[1731720247774,3.2182,3107.4,3106.7,2.99999922]
[1731720248072,3.2182,3107.4,3106.8,3.21872]
[1731720248242,3.2182,3107.4,3106.9,3.28299395]
[1731720248632,0.04062801,3107.3,3106.9,3.28299395]
[1731720248829,0.04062801,3107.3,3106.5,0.7658]
[1731720249031,0.7987,3107.0,3106.0,3.6117239]
[1731720249275,0.7987,3107.0,3106.0,3.21952]
[1731720249276,3.21903,3106.6,3106.0,3.21952]
[1731720249576,0.7987,3106.5,3106.0,3.21952]
[1731720249777,0.83878616,3106.5,3106.0,3.21952]
[1731720249990,0.83878616,3106.5,3105.8,3.21969]
[1731720249991,4.05783616,3106.5,3105.8,3.21969]
[1731720250267,3.21917,3106.4,3105.6,3.21993]
[1731720250433,3.21917,3106.4,3105.7,3.21988]
[1731720250434,3.21936,3106.2,3105.7,3.21988]
[1731720250630,3.21936,3106.2,3105.6,3.21993]
[1731720250854,0.03980717,3106.1,3105.6,3.21993]
[1731720251444,3.25934717,3106.1,3105.5,3.22007]
[1731720251642,3.21964,3106.0,3105.5,0.46419308]
[1731720251843,3.21964,3106.0,3105.3,3.98602]
[1731720251844,3.25938077,3106.0,3105.3,3.98602]
[1731720252081,0.7987,3105.9,3105.4,3.22019]
[1731720252275,0.7987,3105.9,3105.1,3.22047]
[1731720252276,3.2199,3105.7,3105.1,3.22047]
[1731720252576,3.76988,3105.7,3105.1,0.41439154]
[1731720252890,0.03947622,3105.6,3105.1,0.41439154]
[1731720253179,0.03947622,3105.6,3105.2,0.06440208]
[1731720253347,0.03947622,3105.6,3105.2,3.71892551]
[1731720253552,0.55,3105.7,3105.1,0.41439154]
[1731720253750,0.7987,3105.3,3104.7,0.65097001]
[1731720254075,0.03913837,3105.2,3104.7,3.87185001]
[1731720254272,0.03913837,3105.2,3104.7,4.25903501]
[1731720254785,0.03913837,3105.2,3104.7,1.03815501]
[1731720254939,0.03913837,3105.2,3104.7,7.25897501]
[1731720256139,0.03913837,3105.2,3104.7,0.65097001]
[1731720256381,3.22081,3104.8,3104.2,3.22136]
[1731720256675,4.05711123,3104.7,3104.0,3.22157]
[1731720256852,4.05711123,3104.7,3104.1,3.865859]
[1731720257480,3.22104,3104.6,3104.1,0.644329]
[1731720257677,3.25720053,3104.6,3104.1,0.644329]
[1731720258284,0.03616053,3104.6,3104.3,3.0]
[1731720258860,0.03616053,3104.6,3104.1,3.644329]
[1731720259663,0.03616053,3104.6,3104.2,3.0]
[1731720259850,3.25720053,3104.6,3104.0,3.64981158]
[1731720260255,3.22114,3104.5,3104.0,0.64981158]
[1731720260459,3.25487088,3104.5,3104.0,0.64981158]
[1731720267584,0.03373088,3104.5,3104.0,0.64981158]
[1731720267747,0.03373088,3104.5,3104.0,1.33696574]
[1731720267948,4.01966,3104.7,3104.0,1.33696574]
[1731720268285,4.01966,3104.7,3104.0,1.34016574]
[1731720268517,3.22114,3104.5,3104.0,1.34016574]
[1731720268932,0.03361182,3104.4,3104.0,1.34016574]
[1731720270180,0.03361182,3104.4,3104.0,0.65301158]
[1731720271004,3.25490182,3104.4,3104.0,0.65301158]
[1731720271178,3.22141,3104.3,3104.0,0.65301158]
[1731720271385,3.22154,3104.1,3104.0,0.0032]
[1731720271585,4.01824,3104.1,3104.0,0.0032]
[1731720271785,4.05165321,3104.1,3104.0,0.0032]
[1731720272416,4.77895953,3104.1,3104.0,0.0032]
[1731720274137,0.03341321,3104.1,3104.0,0.0032]
[1731720274295,0.03341321,3104.1,3104.0,0.06762545]
[1731720274481,4.0541,3104.5,3104.0,0.0032]
[1731720274687,0.03232617,3104.1,3104.0,0.0032]
[1731720274890,0.8329,3104.5,3104.0,0.0032]
[1731720275116,0.03232645,3104.1,3104.0,0.0032]
[1731720275431,3.2213,3104.4,3104.0,0.0032]
[1731720275623,0.03232645,3104.1,3104.0,0.0032]
[1731720275926,0.03232897,3104.1,3104.0,0.0032]
[1731720276149,3.2213,3104.4,3104.0,0.0032]
[1731720276436,0.03232897,3104.1,3104.0,0.0032]
[1731720276609,3.22154,3104.1,3104.0,0.0032]
[1731720276804,3.25386897,3104.1,3104.0,0.0032]
[1731720277834,4.63676897,3104.1,3104.0,0.0032]
[1731720282319,4.64834682,3104.1,3104.0,0.0032]
[1731720283006,5.78452777,3104.1,3104.0,0.0032]
[1731720287933,5.77195897,3104.1,3104.0,0.0032]
[1731720291425,5.74851286,3104.1,3104.0,0.0032]
[1731720291860,5.75851286,3104.1,3104.0,0.0032]
[1731720292062,5.76851286,3104.1,3104.0,0.0032]
[1731720292718,5.76851286,3104.1,3102.0,0.01]
[1731720292719,3.22289,3102.8,3102.4,3.8203]
[1731720292921,3.22289,3102.8,3102.4,0.8203]
[1731720292922,3.2231,3102.6,3102.4,0.8203]
[1731720293129,3.2231,3102.6,3102.1,0.8203]
[1731720293357,3.2231,3102.6,3102.2,0.404402]
[1731720293358,0.03251825,3102.5,3102.2,0.404402]
[1731720293580,0.03251825,3102.5,3102.3,0.65930384]
[1731720293581,3.25573825,3102.5,3102.3,0.65930384]
[1731720293725,0.03251825,3102.5,3102.3,0.65930384]
[1731720294526,3.22311,3102.6,3102.3,0.66252228]
[1731720294752,0.0352281,3102.5,3102.3,0.66252228]
[1731720294939,3.2584481,3102.5,3102.3,0.66252228]
[1731720298761,3.2584481,3102.5,3102.3,0.00321844]
[1731720300106,0.0352281,3102.5,3102.3,0.00321844]
[1731720300802,0.03839857,3102.5,3102.3,0.00321844]
[1731720302974,0.55,3102.6,3102.3,0.00321844]
[1731720303182,0.03839857,3102.5,3102.3,0.00321844]
[1731720305030,6.44609,3102.7,3102.3,0.00321844]
[1731720305031,0.55,3102.6,3102.3,0.00321844]
[1731720305176,0.04220607,3102.5,3102.3,0.00321844]
[1731720311444,3.49196263,3103.2,3102.3,0.00321844]
[1731720311445,3.22219,3103.5,3102.9,3.22272]
[1731720311651,3.22219,3103.5,3102.9,3.22593844]
[1731720311851,0.7813,3103.8,3103.1,3.22252]
[1731720311852,3.22204,3103.7,3103.1,3.22252]
[1731720312010,3.22207,3103.6,3103.1,3.22252]
[1731720312216,4.46985755,3104.0,3103.4,0.7574]
[1731720312410,4.46985755,3104.0,3103.5,3.22215]
[1731720312411,3.22166,3104.0,3103.5,3.22215]
[1731720313047,0.7813,3104.1,3103.5,3.22215]
[1731720313239,3.22149,3104.2,3103.5,3.22208]
[1731720313436,3.22149,3104.2,3103.5,3.22207]
[1731720313771,3.22155,3104.1,3103.6,0.23652122]
[1731720313941,3.22155,3104.1,3103.5,3.22207]
[1731720314135,3.22134,3104.3,3103.7,3.22192]
[1731720314335,3.22145,3104.2,3103.7,0.00321844]
[1731720315443,3.22154,3104.2,3103.7,0.00321844]
[1731720315971,3.22154,3104.2,3103.7,3.22514844]
[1731720316362,0.1520778,3105.0,3103.7,3.22514844]
[1731720316363,3.22109,3104.6,3103.8,0.7574]
[1731720316595,3.22109,3104.6,3103.9,6.44334]
[1731720316736,3.22109,3104.6,3104.0,3.22161]
[1731720316935,3.22109,3104.6,3104.0,3.22482844]
[1731720318763,3.22143,3104.3,3104.0,0.00321844]
[1731720318973,3.865733,3104.2,3104.0,0.00321844]
[1731720319274,3.22154,3104.1,3104.0,0.00321844]
[1731720319873,3.77154,3104.1,3104.0,0.00321844]
[1731720321496,4.55284,3104.1,3104.0,0.00321844]
[1731720324178,3.77154,3104.1,3104.0,0.00321844]
[1731720325211,4.47084,3104.1,3104.0,0.00321844]
[1731720326121,3.22146,3104.2,3104.0,0.00321844]
[1731720326473,3.22154,3104.1,3104.0,0.00321844]
[1731720326720,3.22146,3104.2,3104.0,0.00321844]
[1731720327415,3.22154,3104.1,3104.0,0.00321844]
[1731720328930,3.77154,3104.1,3104.0,0.00321844]
[1731720329105,4.47084,3104.1,3104.0,0.00321844]
[1731720331910,6.44299,3104.2,3104.0,0.00321844]
[1731720332110,3.22146,3104.2,3104.0,0.00321844]
[1731720332446,0.7813,3104.4,3104.0,0.00321844]
[1731720332620,3.22154,3104.1,3104.0,0.00321844]
[1731720333030,3.22145,3104.2,3104.0,0.75931844]
[1731720333870,3.22149,3104.2,3104.0,0.75931844]
[1731720334065,6.443,3104.2,3104.0,0.75931844]
[1731720334486,0.55,3104.4,3104.0,3.98089844]
[1731720334650,3.22108,3104.6,3104.1,3.61961984]
[1731720334975,3.50196263,3105.6,3104.1,3.61961984]
[1731720334976,3.22054,3105.1,3104.5,3.22111]
[1731720335276,3.22054,3105.1,3104.6,0.7561]
[1731720335433,3.22054,3105.1,3104.6,0.75931844]
[1731720336483,3.22067,3105.0,3104.6,0.75931844]
[1731720336689,3.22052,3105.1,3104.6,0.75931844]
[1731720336838,6.44112,3105.1,3104.6,0.75931844]
[1731720337337,3.22052,3105.1,3104.6,0.75931844]
[1731720337856,6.44112,3105.1,3104.6,0.75931844]
[1731720338574,3.22062,3105.0,3104.6,0.75931844]
[1731720338775,3.22052,3105.1,3104.6,1.1638049]
[1731720339362,6.44112,3105.1,3104.6,1.1638049]
[1731720339560,0.55,3105.2,3104.6,1.1638049]
[1731720339745,3.22057,3105.1,3104.6,0.75931844]
[1731720341139,3.22057,3105.1,3104.8,0.65549918]
[1731720341338,3.22057,3105.1,3104.8,0.65871762]
[1731720342561,3.22062,3105.0,3104.8,0.65871762]
[1731720342765,3.22071,3104.9,3104.8,0.00321844]
[1731720342969,3.22057,3105.1,3104.8,0.00321844]
[1731720343920,3.22063,3105.0,3104.8,0.00321844]
[1731720344307,3.22071,3104.9,3104.8,0.00321844]
[1731720346399,3.77071,3104.9,3104.8,0.00321844]
[1731720347885,0.55,3105.0,3104.8,0.00321844]
[1731720348535,3.77062,3105.0,3104.8,0.00321844]
[1731720350126,3.22057,3105.1,3104.8,0.00321844]
[1731720350127,3.77071,3104.9,3104.8,0.00321844]
[1731720357821,4.469838,3104.9,3104.8,0.00321844]
[1731720358081,4.469838,3104.9,3104.8,8.44e-06]
[1731720358082,5.263838,3104.9,3104.8,8.44e-06]
[1731720358561,0.794,3104.7,3104.0,0.08276156]
[1731720358759,3.77154,3104.1,3104.0,0.08276156]
[1731720359269,3.22188,3103.8,3103.6,1.46163014]
[1731720359425,0.55,3104.0,3103.6,1.46163014]
[1731720359762,0.55,3103.8,3103.6,1.46163014]
[1731720360083,3.77187,3103.8,3103.7,0.23635208]
[1731720360566,3.77187,3103.8,3103.7,0.23957052]
[1731720360769,3.77187,3103.8,3103.7,0.00321844]
[1731720361139,4.793401,3103.8,3103.7,0.00321844]
[1731720364039,9.07936363,3103.8,3103.7,0.00321844]
[1731720364234,12.08936363,3103.8,3103.7,0.00321844]
[1731720364439,12.08936363,3103.8,3103.7,8.44e-06]
[1731720364649,12.07936363,3103.8,3103.7,8.44e-06]
[1731720366047,12.08936363,3103.8,3103.7,8.44e-06]
[1731720366348,21.00936363,3103.8,3103.7,8.44e-06]
[1731720368947,20.99936363,3103.8,3103.7,8.44e-06]
[1731720369153,3.22187,3103.8,3103.7,8.44e-06]
[1731720371254,3.77187,3103.8,3103.7,8.44e-06]
[1731720371918,7.26383263,3103.8,3103.7,8.44e-06]
[1731720372054,8.02183263,3103.8,3103.7,8.44e-06]
[1731720372501,11.02183263,3103.8,3103.7,8.44e-06]
[1731720372802,3.77299,3102.7,3102.3,0.8681]
[1731720372999,3.22326,3102.5,3102.3,0.8681]
[1731720373766,3.22326,3102.5,3102.3,0.7781]
[1731720374760,0.55,3102.4,3102.3,0.7781]
[1731720374961,0.55,3102.4,3102.3,0.78131844]
[1731720375457,3.77331,3102.4,3102.3,0.78131844]
[1731720376200,0.55,3102.8,3102.3,4.00472844]
[1731720376986,0.55,3102.8,3102.4,0.7781]
[1731720377500,3.77291,3102.8,3102.4,0.7781]
[1731720377704,3.22281,3102.9,3102.4,0.7781]
[1731720377705,0.55,3102.6,3102.4,0.7781]
[1731720377933,3.7732,3102.5,3102.4,0.7781]
[1731720378432,3.77331,3102.4,3102.3,0.00321844]
[1731720379561,0.55,3102.4,3102.3,0.00321844]
[1731720379697,0.55,3102.8,3102.3,0.00321844]
[1731720380193,3.22263,3103.1,3102.4,0.7781]
[1731720380400,3.22241,3103.3,3102.6,0.7781]
[1731720380621,3.22241,3103.3,3102.8,0.7781]
[1731720380932,3.22241,3103.3,3102.8,0.78131844]
[1731720381627,3.22255,3103.2,3102.8,0.78131844]
[1731720382723,8.92,3104.0,3102.8,0.00321844]
[1731720382920,3.22162,3104.1,3103.3,3.22229]
[1731720383128,3.22162,3104.1,3103.5,3.2221]
[1731720383435,3.22162,3104.1,3103.5,3.22531844]
[1731720384195,0.55,3104.0,3103.5,3.22531844]
[1731720385410,3.22178,3103.9,3103.5,0.64763375]
[1731720385736,0.55,3103.8,3103.5,0.64763375]
[1731720386693,0.55,3103.8,3103.5,0.00321844]
[1731720386898,3.77206,3103.6,3103.5,0.00321844]
[1731720388934,0.55,3103.6,3103.5,0.00321844]
[1731720389645,3.77206,3103.6,3103.5,0.00321844]
[1731720392550,3.22128,3104.4,3103.5,0.75931844]
[1731720392852,3.22196,3103.7,3103.5,0.75931844]
[1731720393351,3.22169,3104.0,3103.5,0.75931844]
[1731720393654,0.8026,3104.3,3103.7,0.7561]
[1731720393955,3.2217,3104.0,3103.7,0.75931844]
[1731720394167,0.8026,3104.3,3103.7,0.75931844]
[1731720394319,3.22185,3103.8,3103.7,0.00321844]
[1731720394651,3.866209,3103.8,3103.7,0.00321844]
[1731720394861,4.416209,3103.8,3103.7,0.00321844]
[1731720395854,5.218809,3103.8,3103.7,0.00321844]
[1731720396040,8.71077163,3103.8,3103.7,0.00321844]
[1731720398053,8.71077163,3103.8,3102.6,0.7561]
[1731720398054,3.77299,3102.7,3102.6,0.7561]
[1731720398257,0.55,3102.4,3102.3,0.7561]
[1731720398609,3.22283,3102.9,3102.3,0.7561]
[1731720398822,3.22258,3103.1,3102.3,0.7561]
[1731720398823,3.22258,3103.1,3102.5,3.97924]
[1731720399175,12.14221,3103.5,3102.8,0.7561]
[1731720399453,3.22244,3103.3,3102.8,0.7561]
[1731720399966,3.22221,3103.5,3102.8,0.7561]
[1731720400118,0.55,3103.3,3102.8,0.7561]
[1731720400317,0.55,3103.3,3102.8,0.75931844]
[1731720401143,0.55,3103.2,3102.8,0.75931844]
[1731720401451,0.55,3103.2,3102.9,3.22273]
[1731720401773,3.22229,3103.4,3102.8,4.38685683]
[1731720402680,0.55,3103.3,3102.8,4.38685683]
[1731720402880,0.55,3103.6,3103.1,3.22249]
[1731720403046,3.22161,3104.1,3103.5,0.7561]
[1731720403385,3.22161,3104.1,3103.5,0.75931844]
[1731720403386,3.22177,3103.9,3103.5,0.75931844]
[1731720403680,3.22161,3104.1,3103.5,0.75931844]